fUSD/lending_fUSD_20250217
["ID","MTS","AMOUNT","RATE_DAILY","PERIOD"]
[353343789,1739785839246,-173.61,0.00012152,2]
[353343790,1739785839255,-682.93,0.00012165,2]
[353343791,1739785839264,-264.35830157,0.00012191,2]
[353343792,1739785839273,-1000.0,0.00012206,2]
[353343793,1739785839282,-1592.49846989,0.00012367,2]
[353343794,1739785839291,-1060.32451626,0.00012367,2]
[353343795,1739785839300,-305.19254748,0.00012392,2]
[353343796,1739785839310,-631.02310533,0.00012395,2]
[353343797,1739785839319,-4000.0,0.000124,2]
[353343798,1739785839328,-1060.0,0.00012402,2]
[353343799,1739785839338,-264.36063846,0.00012418,2]
[353343800,1739785839347,-415.04,0.00012521,2]
[353343801,1739785839356,-150.0,0.00012546,2]
[353343802,1739785839365,-150.0,0.00012548,2]
[353343803,1739785839374,-150.0,0.00012564,2]
[353343804,1739785839384,-151.96997715,0.00012624,2]
[353343805,1739785839394,-1786.0,0.00012684,2]
[353343806,1739785839404,-1592.49846989,0.00012778,2]
[353343807,1739785839413,-1060.32451626,0.00012778,2]
[353343808,1739785839425,-188.05608793,0.00012783,2]
[353343809,1739785839434,-150.0,0.00012793,2]
[353343810,1739785839443,-500.0,0.00012798,2]
[353343811,1739785839452,-1100.0,0.00012798,2]
[353343812,1739785839461,-150.0,0.00012956,2]
[353343813,1739785839470,-150.0,0.00012975,2]
[353343814,1739785839479,-300.0,0.00012999,2]
[353343815,1739785839489,-300.0,0.00012999,2]
[353343816,1739785839500,-263.52889134,0.00012999,2]
[353343817,1739785839510,-155133.97,0.00013,5]
[353343818,1739785839521,-225.9817405,0.00013,2]
[353343819,1739785839532,-305.19254748,0.00013015,2]
[353343820,1739785839541,-998.94,0.00013024,2]
[353343821,1739785839552,-1300.0,0.00013072,2]
[353343822,1739785839562,-173.61,0.00013079,2]
[353343823,1739785839571,-150.0,0.00013134,2]
[353343824,1739785839582,-1592.49846989,0.00013189,2]
[353343825,1739785839591,-1060.32451626,0.00013189,2]
[353343826,1739785839601,-150.86793511,0.00013211,2]
[353343827,1739785839611,-631.02310533,0.00013227,2]
[353343828,1739785839621,-150.0,0.00013251,2]
[353343829,1739785839632,-150.0,0.000133,2]
[353343830,1739785839642,-151.96997715,0.00013305,2]
[353343831,1739785839652,-150.0,0.00013315,2]
[353343832,1739785839665,-150.0,0.00013333,2]
[353343833,1739785839674,-223.0,0.00013342,2]
[353343834,1739785839684,-150.0,0.00013344,2]
[353343835,1739785839693,-150.0,0.00013352,2]
[353343836,1739785839705,-150.0,0.00013376,2]
[353343837,1739785839714,-150.0,0.00013386,2]
[353343838,1739785839724,-150.0,0.00013414,2]
[353343839,1739785839734,-585.15942204,0.00013425,2]
[353343840,1739785839744,-150.0,0.00013429,2]
[353343841,1739785839754,-150.0,0.00013458,2]
[353343842,1739785839764,-585.15942204,0.00013479,2]
[353343843,1739785839773,-150.0,0.00013486,2]
[353343844,1739785839783,-150.0,0.0001349,2]
[353343845,1739785839792,-500.0,0.000135,2]
[353343846,1739785839801,-500.0,0.000135,2]
[353343847,1739785839811,-500.0,0.000135,2]
[353343848,1739785839821,-500.0,0.000135,2]
[353343849,1739785839831,-500.0,0.000135,2]
[353343850,1739785839840,-500.0,0.000135,2]
[353343851,1739785839850,-500.0,0.000135,2]
[353343852,1739785839859,-500.0,0.000135,2]
[353343853,1739785839868,-500.0,0.000135,2]
[353343854,1739785839877,-500.0,0.000135,2]
[353343855,1739785839887,-500.0,0.000135,2]
[353343856,1739785839897,-500.0,0.000135,2]
[353343857,1739785839906,-500.0,0.000135,2]
[353343858,1739785839916,-500.0,0.000135,2]
[353343859,1739785839926,-500.0,0.000135,2]
[353343860,1739785839935,-500.0,0.000135,2]
[353343861,1739785839945,-500.0,0.000135,2]
[353343862,1739785839955,-500.0,0.000135,2]
[353343863,1739785839965,-500.0,0.000135,2]
[353343864,1739785839974,-500.0,0.000135,2]
[353343865,1739785839985,-500.0,0.000135,2]
[353343866,1739785839994,-500.0,0.000135,2]
[353343867,1739785840004,-500.0,0.000135,2]
[353343868,1739785840014,-500.0,0.000135,2]
[353343869,1739785840024,-500.0,0.000135,2]
[353343870,1739785840034,-500.0,0.000135,2]
[353343871,1739785840043,-500.0,0.000135,2]
[353343872,1739785840052,-500.0,0.000135,2]
[353343873,1739785840061,-500.0,0.000135,2]
[353343874,1739785840071,-468.68,0.000135,2]
[353343875,1739785840081,-452.17031949,0.000135,2]
[353343876,1739785840090,-500.0,0.000135,2]
[353343877,1739785840100,-500.0,0.000135,2]
[353343878,1739785840109,-500.0,0.000135,2]
[353343879,1739785840118,-500.0,0.000135,2]
[353343880,1739785840128,-500.0,0.000135,2]
[353343881,1739785840138,-500.0,0.000135,2]
[353343882,1739785840148,-500.0,0.000135,2]
[353343883,1739785840158,-500.0,0.000135,2]
[353343884,1739785840168,-416.5,0.000135,2]
[353343885,1739785840177,-55535.83100356,0.000135,2]
[353343886,1739785840188,-1782.0,0.000135,2]
[353343887,1739785840197,-150.0,0.00013504,2]
[353343888,1739785840206,-150.0,0.00013515,2]
[353343889,1739785840215,-682.93,0.00013517,2]
[353343890,1739785840224,-150.0,0.0001353,2]
[353343891,1739785840234,-585.15942204,0.00013534,2]
[353343892,1739785840243,-150.0,0.00013553,2]
[353343893,1739785840252,-150.0,0.00013554,2]
[353343894,1739785840262,-1000.0,0.00013563,2]
[353343895,1739785840271,-197.08547211,0.00013588,2]
[353343896,1739785840281,-150.0,0.00013592,2]
[353343897,1739785840290,-179.75114017,0.00013598,2]
[353343898,1739785840299,-2133.78713604,0.00013598,2]
[353343899,1739785840308,-484.40664579,0.00013598,2]
[353343900,1739785840317,-211.92601541,0.00013598,2]
[353343902,1739785840327,-1592.49846989,0.000136,2]
[353343904,1739785840336,-1060.32451626,0.000136,2]
[353343905,1739785840345,-1000.0,0.00013607,2]
[353343906,1739785840355,-585.15942204,0.00013616,2]
[353343907,1739785840364,-305.19254748,0.00013638,2]
[353343908,1739785840374,-150.0,0.0001364,2]
[353343909,1739785840383,-150.0,0.00013668,2]
[353343910,1739785840393,-585.15942204,0.00013671,2]
[353343911,1739785840402,-150.0,0.00013672,2]
[353343912,1739785840412,-1000.0,0.0001368,2]
[353343913,1739785840421,-1000.0,0.00013684,2]
[353343914,1739785840431,-150.0,0.00013685,2]
[353343915,1739785840440,-150.0,0.0001369,2]
[353343916,1739785840449,-150.0,0.00013692,2]
[353343917,1739785840458,-300.0,0.00013697,2]
[353343918,1739785840468,-300.0,0.00013697,2]
[353343919,1739785840478,-564.267178,0.00013698,2]
[353343920,1739785840487,-163.607122,0.00013698,2]
[353343921,1739785840496,-156.081308,0.00013698,2]
[353343922,1739785840506,-505.388553,0.00013698,2]
[353343923,1739785840515,-151.60764,0.00013698,2]
[353343924,1739785840524,-151.301356,0.00013698,2]
[353343925,1739785840535,-161.714815,0.00013698,2]
[353343926,1739785840544,-163.607124,0.00013698,2]
[353343927,1739785840554,-156.081307,0.00013698,2]
[353343928,1739785840563,-161.714815,0.00013698,2]
[353343929,1739785840573,-500.0,0.00013698,2]
[353343930,1739785840582,-502.80383403,0.00013698,2]
[353343931,1739785840591,-500.0,0.00013698,2]
[353343932,1739785840601,-500.0,0.00013698,2]
[353343933,1739785840610,-500.0,0.00013698,2]
[353343934,1739785840620,-500.0,0.00013698,2]
[353343935,1739785840629,-500.0,0.00013698,2]
[353343936,1739785840639,-500.0,0.00013698,2]
[353343937,1739785840648,-500.0,0.00013698,2]
[353343938,1739785840660,-505.81192948,0.00013698,2]
[353343939,1739785840669,-500.0,0.00013698,2]
[353343940,1739785840678,-500.0,0.00013698,2]
[353343941,1739785840689,-500.0,0.00013698,2]
[353343942,1739785840701,-500.0,0.00013698,2]
[353343943,1739785840711,-507.06963681,0.00013698,2]
[353343944,1739785840721,-500.0,0.00013698,2]
[353343945,1739785840730,-500.0,0.00013698,2]
[353343946,1739785840741,-505.03281762,0.00013698,2]
[353343947,1739785840751,-500.0,0.00013698,2]
[353343948,1739785840761,-500.0,0.00013698,2]
[353343949,1739785840771,-1200.0,0.00013698,2]
[353343950,1739785840780,-500.0,0.00013698,2]
[353343951,1739785840791,-501.58831692,0.00013698,2]
[353343952,1739785840802,-501.74047751,0.00013698,2]
[353343953,1739785840811,-505.05187748,0.00013698,2]
[353343954,1739785840821,-500.0,0.00013698,2]
[353343955,1739785840830,-500.0,0.00013698,2]
[353343956,1739785840839,-500.0,0.00013698,2]
[353343957,1739785840848,-511.93571253,0.00013698,2]
[353343958,1739785840857,-500.0,0.00013698,2]
[353343959,1739785840867,-508.67113656,0.00013698,2]
[353343960,1739785840876,-500.0,0.00013698,2]
[353343961,1739785840886,-504.54334439,0.00013698,2]
[353343962,1739785840896,-500.0,0.00013698,2]
[353343963,1739785840906,-561.82289511,0.00013698,2]
[353343964,1739785840916,-500.0,0.00013698,2]
[353343965,1739785840926,-500.0,0.00013698,2]
[353343966,1739785840935,-500.0,0.00013698,2]
[353343967,1739785840945,-500.0,0.00013698,2]
[353343968,1739785840954,-500.0,0.00013698,2]
[353343969,1739785840964,-432.37859289,0.00013698,2]
[353343970,1739785840974,-502.60251708,0.00013698,2]
[353343971,1739785840983,-500.0,0.00013698,2]
[353343972,1739785840993,-500.0,0.00013698,2]
[353343973,1739785841003,-500.0,0.00013698,2]
[353343974,1739785841012,-500.0,0.00013698,2]
[353343975,1739785841022,-505.70184442,0.00013698,2]
[353343976,1739785841031,-500.0,0.00013698,2]
[353343977,1739785841041,-500.0,0.00013698,2]
[353343978,1739785841051,-500.0,0.00013698,2]
[353343979,1739785841060,-500.0,0.00013698,2]
[353343980,1739785841069,-500.0,0.00013698,2]
[353343981,1739785841079,-500.0,0.00013698,2]
[353343982,1739785841088,-500.0,0.00013698,2]
[353343983,1739785841097,-238.51337416,0.00013698,2]
[353343984,1739785841107,-484.35676992,0.00013698,2]
[353343985,1739785841116,-500.0,0.00013698,2]
[353343986,1739785841125,-500.0,0.00013698,2]
[353343987,1739785841135,-500.0,0.00013698,2]
[353343988,1739785841145,-500.0,0.00013698,2]
[353343989,1739785841154,-500.0,0.00013698,2]
[353343990,1739785841163,-500.0,0.00013698,2]
[353343991,1739785841172,-500.0,0.00013698,2]
[353343992,1739785841182,-500.0,0.00013698,2]
[353343993,1739785841191,-500.0,0.00013698,2]
[353343994,1739785841200,-500.0,0.00013698,2]
[353343995,1739785841209,-508.4868433,0.00013698,2]
[353343996,1739785841219,-480.38539114,0.00013698,2]
[353343997,1739785841228,-500.0,0.00013698,2]
[353343998,1739785841238,-507.62862372,0.00013698,2]
[353343999,1739785841247,-500.0,0.00013698,2]
[353344000,1739785841256,-500.0,0.00013698,2]
[353344001,1739785841266,-500.0,0.00013698,2]
[353344002,1739785841275,-537.87,0.00013698,2]
[353344003,1739785841284,-500.0,0.00013698,2]
[353344004,1739785841293,-502.05232337,0.00013698,2]
[353344005,1739785841303,-500.0,0.00013698,2]
[353344006,1739785841312,-510.7839517,0.00013698,2]
[353344007,1739785841321,-372.16202333,0.00013698,2]
[353344008,1739785841330,-500.0,0.00013698,2]
[353344009,1739785841340,-500.0,0.00013698,2]
[353344010,1739785841349,-500.0,0.00013698,2]
[353344011,1739785841359,-500.0,0.00013698,2]
[353344012,1739785841368,-500.0,0.00013698,2]
[353344013,1739785841377,-503.13186724,0.00013698,2]
[353344014,1739785841386,-359.80204146,0.00013698,2]
[353344015,1739785841397,-500.0,0.00013698,2]
[353344016,1739785841406,-504.03343482,0.00013698,2]
[353344017,1739785841415,-504.11825825,0.00013698,2]
[353344018,1739785841424,-502.80489093,0.00013698,2]
[353344019,1739785841433,-500.0,0.00013698,2]
[353344020,1739785841443,-505.55036841,0.00013698,2]
[353344021,1739785841452,-500.0,0.00013698,2]
[353344022,1739785841461,-508.60528438,0.00013698,2]
[353344023,1739785841470,-261.65819848,0.00013698,2]
[353344024,1739785841480,-500.0,0.00013698,2]
[353344025,1739785841489,-500.0,0.00013698,2]
[353344026,1739785841498,-492.49051196,0.00013698,2]
[353344027,1739785841508,-500.0,0.00013698,2]
[353344028,1739785841517,-500.0,0.00013698,2]
[353344029,1739785841527,-500.0,0.00013698,2]
[353344030,1739785841536,-500.0,0.00013698,2]
[353344031,1739785841546,-501.06506412,0.00013698,2]
[353344032,1739785841557,-510.04,0.00013698,2]
[353344033,1739785841567,-512.61150046,0.00013698,2]
[353344034,1739785841577,-500.0,0.00013698,2]
[353344035,1739785841587,-500.0,0.00013698,2]
[353344036,1739785841596,-500.0,0.00013698,2]
[353344037,1739785841605,-500.0,0.00013698,2]
[353344038,1739785841616,-500.0,0.00013698,2]
[353344039,1739785841624,-500.0,0.00013698,2]
[353344040,1739785841634,-500.0,0.00013698,2]
[353344041,1739785841644,-500.0,0.00013698,2]
[353344042,1739785841653,-503.10394233,0.00013698,2]
[353344043,1739785841666,-500.0,0.00013698,2]
[353344044,1739785841675,-500.0,0.00013698,2]
[353344045,1739785841684,-508.03457796,0.00013698,2]
[353344046,1739785841693,-500.0,0.00013698,2]
[353344047,1739785841703,-500.0,0.00013698,2]
[353344048,1739785841713,-500.0,0.00013698,2]
[353344049,1739785841723,-500.0,0.00013698,2]
[353344050,1739785841732,-500.0,0.00013698,2]
[353344051,1739785841742,-500.0,0.00013698,2]
[353344052,1739785841751,-500.0,0.00013698,2]
[353344053,1739785841761,-500.0,0.00013698,2]
[353344054,1739785841770,-500.0,0.00013698,2]
[353344055,1739785841780,-658.31,0.00013698,2]
[353344056,1739785841789,-500.0,0.00013698,2]
[353344057,1739785841799,-522.44,0.00013698,2]
[353344058,1739785841809,-266.06701402,0.00013698,2]
[353344059,1739785841819,-873.29,0.00013698,2]
[353344060,1739785841828,-500.0,0.00013698,2]
[353344061,1739785841837,-500.0,0.00013698,2]
[353344062,1739785841846,-500.0,0.00013698,2]
[353344063,1739785841856,-297.53824576,0.00013698,2]
[353344064,1739785841865,-500.0,0.00013698,2]
[353344065,1739785841874,-500.0,0.00013698,2]
[353344066,1739785841883,-500.0,0.00013698,2]
[353344067,1739785841893,-500.0,0.00013698,2]
[353344068,1739785841903,-773.29,0.00013698,2]
[353344069,1739785841914,-500.0,0.00013698,2]
[353344070,1739785841923,-500.0,0.00013698,2]
[353344071,1739785841933,-500.0,0.00013698,2]
[353344072,1739785841942,-500.0,0.00013698,2]
[353344073,1739785841952,-500.0,0.00013698,2]
[353344074,1739785841961,-500.0,0.00013698,2]
[353344075,1739785841971,-500.0,0.00013698,2]
[353344076,1739785841983,-500.0,0.00013698,2]
[353344077,1739785841993,-500.0,0.00013698,2]
[353344078,1739785842003,-500.0,0.00013698,2]
[353344079,1739785842012,-500.0,0.00013698,2]
[353344080,1739785842022,-500.0,0.00013698,2]
[353344081,1739785842033,-500.0,0.00013698,2]
[353344082,1739785842042,-500.0,0.00013698,2]
[353344083,1739785842052,-500.0,0.00013698,2]
[353344084,1739785842063,-500.0,0.00013698,2]
[353344085,1739785842072,-500.0,0.00013698,2]
[353344086,1739785842082,-500.0,0.00013698,2]
[353344087,1739785842094,-500.0,0.00013698,2]
[353344088,1739785842105,-500.0,0.00013698,2]
[353344089,1739785842115,-500.0,0.00013698,2]
[353344090,1739785842125,-500.0,0.00013698,2]
[353344091,1739785842135,-500.0,0.00013698,2]
[353344092,1739785842146,-500.0,0.00013698,2]
[353344093,1739785842155,-500.0,0.00013698,2]
[353344094,1739785842164,-269.47675754,0.00013698,2]
[353344095,1739785842174,-501.77330457,0.00013698,2]
[353344096,1739785842184,-500.0,0.00013698,2]
[353344097,1739785842194,-500.0,0.00013698,2]
[353344098,1739785842203,-500.0,0.00013698,2]
[353344099,1739785842215,-500.0,0.00013698,2]
[353344100,1739785842225,-500.0,0.00013698,2]
[353344101,1739785842237,-189.893697,0.00013698,2]
[353344102,1739785842250,-500.0,0.00013698,2]
[353344103,1739785842261,-500.0,0.00013698,2]
[353344104,1739785842271,-500.0,0.00013698,2]
[353344105,1739785842281,-500.0,0.00013698,2]
[353344106,1739785842292,-500.0,0.00013698,2]
[353344107,1739785842302,-500.0,0.00013698,2]
[353344108,1739785842312,-543.19,0.00013698,2]
[353344109,1739785842321,-500.0,0.00013698,2]
[353344110,1739785842331,-514.32,0.00013698,2]
[353344111,1739785842340,-500.0,0.00013698,2]
[353344112,1739785842349,-500.0,0.00013698,2]
[353344113,1739785842358,-162.328254,0.00013698,2]
[353344114,1739785842368,-500.0,0.00013698,2]
[353344115,1739785842378,-441.93123247,0.00013698,2]
[353344116,1739785842388,-500.0,0.00013698,2]
[353344117,1739785842397,-500.0,0.00013698,2]
[353344118,1739785842407,-500.0,0.00013698,2]
[353344119,1739785842416,-500.0,0.00013698,2]
[353344120,1739785842426,-500.0,0.00013698,2]
[353344121,1739785842437,-500.0,0.00013698,2]
[353344122,1739785842447,-500.0,0.00013698,2]
[353344123,1739785842456,-155.996497,0.00013698,2]
[353344124,1739785842466,-500.0,0.00013698,2]
[353344125,1739785842475,-500.0,0.00013698,2]
[353344126,1739785842484,-519.49,0.00013698,2]
[353344127,1739785842494,-500.0,0.00013698,2]
[353344128,1739785842503,-500.0,0.00013698,2]
[353344129,1739785842512,-500.0,0.00013698,2]
[353344130,1739785842522,-500.0,0.00013698,2]
[353344131,1739785842531,-500.0,0.00013698,2]
[353344132,1739785842540,-500.0,0.00013698,2]
[353344133,1739785842549,-500.0,0.00013698,2]
[353344134,1739785842558,-666.01,0.00013698,2]
[353344135,1739785842567,-773.51,0.00013698,2]
[353344136,1739785842576,-500.0,0.00013698,2]
[353344137,1739785842586,-576.57803035,0.00013698,2]
[353344138,1739785842595,-500.0,0.00013698,2]
[353344139,1739785842604,-500.0,0.00013698,2]
[353344140,1739785842613,-500.0,0.00013698,2]
[353344141,1739785842623,-502.2019396,0.00013698,2]
[353344142,1739785842632,-503.30493243,0.00013698,2]
[353344143,1739785842641,-500.0,0.00013698,2]
[353344144,1739785842651,-500.0,0.00013698,2]
[353344145,1739785842662,-500.0,0.00013698,2]
[353344146,1739785842671,-500.0,0.00013698,2]
[353344147,1739785842680,-501.14658812,0.00013698,2]
[353344148,1739785842690,-177.879399,0.00013698,2]
[353344149,1739785842701,-500.0,0.00013698,2]
[353344150,1739785842710,-500.0,0.00013698,2]
[353344151,1739785842719,-500.0,0.00013698,2]
[353344153,1739785842730,-253.35968058,0.00013698,2]
[353344154,1739785842740,-500.0,0.00013698,2]
[353344155,1739785842750,-500.0,0.00013698,2]
[353344156,1739785842759,-500.0,0.00013698,2]
[353344157,1739785842769,-544.88,0.00013698,2]
[353344158,1739785842778,-500.0,0.00013698,2]
[353344159,1739785842787,-500.0,0.00013698,2]
[353344161,1739785842797,-500.0,0.00013698,2]
[353344162,1739785842806,-500.0,0.00013698,2]
[353344163,1739785842815,-500.0,0.00013698,2]
[353344164,1739785842824,-500.0,0.00013698,2]
[353344165,1739785842834,-552.01,0.00013698,2]
[353344166,1739785842843,-500.0,0.00013698,2]
[353344167,1739785842853,-500.0,0.00013698,2]
[353344168,1739785842862,-670.95,0.00013698,2]
[353344169,1739785842872,-500.0,0.00013698,2]
[353344170,1739785842882,-535.54,0.00013698,2]
[353344171,1739785842891,-500.0,0.00013698,2]
[353344172,1739785842900,-315.13721711,0.00013698,7]
[353344173,1739785842910,-500.0,0.00013698,2]
[353344174,1739785842919,-500.0,0.00013698,2]
[353344175,1739785842929,-500.0,0.00013698,2]
[353344176,1739785842938,-443.99741173,0.00013698,2]
[353344177,1739785842947,-500.0,0.00013698,2]
[353344178,1739785842956,-500.0,0.00013698,2]
[353344179,1739785842965,-500.0,0.00013698,2]
[353344180,1739785842975,-636.93,0.00013698,2]
[353344181,1739785842984,-581.2,0.00013698,2]
[353344182,1739785842993,-500.0,0.00013698,2]
[353344183,1739785843003,-500.0,0.00013698,2]
[353344184,1739785843012,-501.19447747,0.00013698,2]
[353344185,1739785843022,-503.11773891,0.00013698,2]
[353344186,1739785843031,-500.0,0.00013698,2]
[353344187,1739785843041,-500.0,0.00013698,2]
[353344188,1739785843050,-614.02,0.00013698,2]
[353344189,1739785843059,-500.0,0.00013698,2]
[353344190,1739785843068,-578.48,0.00013698,2]
[353344191,1739785843078,-500.0,0.00013698,2]
[353344192,1739785843087,-500.0,0.00013698,2]
[353344193,1739785843096,-500.0,0.00013698,2]
[353344194,1739785843105,-500.0,0.00013698,2]
[353344195,1739785843115,-500.0,0.00013698,2]
[353344196,1739785843125,-500.0,0.00013698,2]
[353344197,1739785843134,-500.0,0.00013698,2]
[353344199,1739785843144,-500.0,0.00013698,2]
[353344200,1739785843153,-500.0,0.00013698,2]
[353344201,1739785843163,-500.0,0.00013698,2]
[353344206,1739785843364,-500.0,0.00013698,2]
[353344207,1739785843374,-512.00067955,0.00013698,2]
[353344208,1739785843383,-500.0,0.00013698,2]
[353344209,1739785843392,-500.0,0.00013698,2]
[353344210,1739785843401,-500.0,0.00013698,2]
[353344211,1739785843410,-500.0,0.00013698,2]
[353344212,1739785843419,-500.0,0.00013698,2]
[353344213,1739785843429,-500.0,0.00013698,2]
[353344214,1739785843438,-500.0,0.00013698,2]
[353344215,1739785843447,-500.0,0.00013698,2]
[353344216,1739785843456,-500.0,0.00013698,2]
[353344217,1739785843466,-500.0,0.00013698,2]
[353344218,1739785843475,-500.0,0.00013698,2]
[353344219,1739785843485,-500.0,0.00013698,2]
[353344220,1739785843494,-500.0,0.00013698,2]
[353344221,1739785843504,-501.8990171,0.00013698,2]
[353344222,1739785843513,-500.0,0.00013698,2]
[353344223,1739785843522,-500.0,0.00013698,2]
[353344224,1739785843532,-508.13,0.00013698,2]
[353344225,1739785843541,-505.38850442,0.00013698,2]
[353344226,1739785843552,-331.57464305,0.00013698,2]
[353344227,1739785843561,-500.0,0.00013698,2]
[353344228,1739785843572,-500.0,0.00013698,2]
[353344229,1739785843581,-500.0,0.00013698,2]
[353344230,1739785843593,-861.09,0.00013698,2]
[353344231,1739785843603,-500.0,0.00013698,2]
[353344232,1739785843614,-500.0,0.00013698,2]
[353344233,1739785843624,-500.0,0.00013698,2]
[353344234,1739785843633,-500.0,0.00013698,2]
[353344235,1739785843642,-500.0,0.00013698,2]
[353344236,1739785843653,-500.0,0.00013698,2]
[353344237,1739785843667,-500.0,0.00013698,2]
[353344238,1739785843677,-502.28372631,0.00013698,2]
[353344239,1739785843687,-500.0,0.00013698,2]
[353344240,1739785843696,-500.0,0.00013698,2]
[353344241,1739785843707,-500.0,0.00013698,2]
[353344242,1739785843716,-500.0,0.00013698,2]
[353344243,1739785843727,-500.0,0.00013698,2]
[353344244,1739785843737,-500.0,0.00013698,2]
[353344245,1739785843748,-500.0,0.00013698,2]
[353344246,1739785843758,-500.0,0.00013698,2]
[353344247,1739785843768,-500.0,0.00013698,2]
[353344248,1739785843777,-401.60168627,0.00013698,2]
[353344249,1739785843787,-500.0,0.00013698,2]
[353344250,1739785843797,-555.02,0.00013698,2]
[353344251,1739785843806,-500.43356933,0.00013698,2]
[353344252,1739785843816,-501.48292972,0.00013698,2]
[353344253,1739785843826,-500.0,0.00013698,2]
[353344254,1739785843835,-661.71,0.00013698,2]
[353344255,1739785843845,-501.32080227,0.00013698,2]
[353344256,1739785843855,-500.0,0.00013698,2]
[353344257,1739785843864,-500.0,0.00013698,2]
[353344258,1739785843874,-500.0,0.00013698,2]
[353344259,1739785843885,-500.0,0.00013698,2]
[353344260,1739785843895,-501.68654817,0.00013698,2]
[353344261,1739785843904,-500.0,0.00013698,2]
[353344262,1739785843915,-500.0,0.00013698,2]
[353344263,1739785843925,-505.86360364,0.00013698,2]
[353344264,1739785843934,-500.0,0.00013698,2]
[353344265,1739785843943,-500.0,0.00013698,2]
[353344266,1739785843953,-644.91,0.00013698,2]
[353344267,1739785843964,-500.0,0.00013698,2]
[353344268,1739785843974,-500.0,0.00013698,2]
[353344269,1739785843984,-500.9204697,0.00013698,2]
[353344270,1739785843994,-570.43,0.00013698,2]
[353344271,1739785844003,-500.0,0.00013698,2]
[353344272,1739785844015,-500.0,0.00013698,2]
[353344273,1739785844025,-500.0,0.00013698,2]
[353344274,1739785844035,-500.0,0.00013698,2]
[353344275,1739785844045,-500.0,0.00013698,2]
[353344276,1739785844055,-500.0,0.00013698,2]
[353344277,1739785844066,-500.0,0.00013698,2]
[353344278,1739785844076,-500.8557849,0.00013698,2]
[353344279,1739785844085,-692.63,0.00013698,2]
[353344280,1739785844096,-500.0,0.00013698,2]
[353344281,1739785844107,-500.0,0.00013698,2]
[353344282,1739785844117,-704.84,0.00013698,2]
[353344283,1739785844127,-604.14,0.00013698,2]
[353344284,1739785844137,-500.0,0.00013698,2]
[353344285,1739785844150,-500.0,0.00013698,2]
[353344286,1739785844159,-150.88,0.00013698,2]
[353344287,1739785844169,-929.17,0.00013698,2]
[353344288,1739785844179,-500.0,0.00013698,2]
[353344289,1739785844191,-500.0,0.00013698,2]
[353344290,1739785844202,-500.0,0.00013698,2]
[353344291,1739785844213,-500.0,0.00013698,2]
[353344292,1739785844223,-500.0,0.00013698,2]
[353344293,1739785844232,-500.0,0.00013698,2]
[353344294,1739785844242,-500.0,0.00013698,2]
[353344295,1739785844251,-500.0,0.00013698,2]
[353344296,1739785844261,-484.66452587,0.00013698,2]
[353344297,1739785844271,-500.0,0.00013698,2]